[Event "HUN-chT Youth-Children 2018"]
[Site "Zalakaros"]
[Date "2018.07.27"]
[Round "4"]
[White "Borhy, Marcell"]
[Black "Marosi, Levente"]
[Result "1/2-1/2"]
[ECO "A40"]
[WhiteElo "2234"]
[BlackElo "2337"]
[Annotator "NA"]
[PlyCount "66"]
[EventDate "2018.07.26"]
[EventType "team-tourn"]
[EventCountry "HUN"]
[SourceTitle "playchess.com"]
[Source "ChessBase"]
[SourceQuality "1"]
[TimeControl "5400+30"]

1. d4 {[%emt 0:00:00]} Nf6 {[%emt 0:00:13]} 2. c4 {[%emt 0:00:00]} e6 {[%emt 0:00:12]} 3. g3 {[%emt 0:00:00]} d5 {[%emt 0:00:13]} 4. Nf3 {[%emt 0:00:19]} Bb4+ {[%emt 0:00:21]} 5. Bd2 {[%emt 0:00:13]} Be7 {[%emt 0:00:06]} 6. Bg2 {[%emt 0:00:28]} O-O {[%emt 0:00:20]} 7. Qc2 {[%emt 0:00:10]} c6 {[%emt 0:00:19]} 8. O-O {[%emt 0:00:16]} Nbd7 {[%emt 0:00:24]} 9. Bf4 {[%emt 0:00:29]} b6 {[%emt 0:00:29]} 10. Rd1 {[%emt 0:00:40]} Bb7 {[%emt 0:00:20]} 11. Nc3 {[%emt 0:00:25]} dxc4 {[%emt 0:00:34]} 12. Nd2 {[%emt 0:00:10]} Nd5 {[%emt 0:00:26]} 13. Nxc4 {[%emt 0:00:08]} Nxf4 {[%emt 0:00:27]} 14. gxf4 {[%emt 0:00:02]} Nf6 {[%emt 0:00:24]} 15. Ne5 {[%emt 0:01:09]} Nd5 {[%emt 0:01:10]} 16. Nxd5 {[%emt 0:00:19]} cxd5 {[%emt 0:00:50]} 17. Rac1 {[%emt 0:00:50]} Bd6 {[%emt 0:12:29]} 18. e3 {[%emt 0:01:31]} Qe7 {[%emt 0:15:10]} 19. Qa4 {[%emt 0:23:06]} a6 {[%emt 0:08:29]} 20. Qd7 {[%emt 0:03:47]} Rfc8 {[%emt 0:09:58]} 21. f5 {[%emt 0:03:55]} Kf8 {[%emt 0:12:53]} 22. fxe6 {[%emt 0:04:51]} fxe6 {[%emt 0:00:41]} 23. Qxe7+ {[%emt 0:01:41]} Kxe7 {[%emt 0:00:12]} 24. Nd3 {[%emt 0:00:21]} a5 {[%emt 0:02:16]} 25. Rxc8 {[%emt 0:06:54]} Rxc8 {[%emt 0:00:00]} 26. Rc1 {[%emt 0:00:33]} Rxc1+ {[%emt 0:03:27]} 27. Nxc1 {[%emt 0:00:02]} Ba6 {[%emt 0:02:17]} 28. h3 {[%emt 0:01:45]} Kf6 {[%emt 0:06:25]} 29. Bf1 {[%emt 0:00:48]} Bc8 {[%emt 0:04:03]} 30. Ne2 {[%emt 0:09:27]} Bd7 {[%emt 0:02:56]} 31. Nc3 {[%emt 0:03:03]} Bb4 {[%emt 0:03:50]} 32. Kg2 {[%emt 0:02:57]} Bxc3 {[%emt 0:02:22]} 33. bxc3 {[%emt 0:00:09]} e5 {[%emt 0:00:34]} 1/2-1/2

[Event "HUN-chT Youth-Children 2018"]
[Site "Zalakaros"]
[Date "2018.07.27"]
[Round "4"]
[White "Geher, Koppany"]
[Black "Gombocz, Zsofia"]
[Result "1-0"]
[ECO "C88"]
[WhiteElo "2207"]
[BlackElo "1996"]
[Annotator "NA"]
[PlyCount "71"]
[EventDate "2018.07.26"]
[EventType "team-tourn"]
[EventCountry "HUN"]
[SourceTitle "playchess.com"]
[Source "ChessBase"]
[SourceQuality "1"]
[TimeControl "5400+30"]

1. e4 {[%emt 0:00:00]} e5 {[%emt 0:00:07]} 2. Nf3 {[%emt 0:00:00]} Nc6 {[%emt 0:00:08]} 3. Bb5 {[%emt 0:00:00]} a6 {[%emt 0:00:08]} 4. Ba4 {[%emt 0:00:00]} Nf6 {[%emt 0:00:17]} 5. O-O {[%emt 0:00:00]} Be7 {[%emt 0:00:16]} 6. Re1 {[%emt 0:00:10]} b5 {[%emt 0:00:13]} 7. Bb3 {[%emt 0:00:07]} O-O {[%emt 0:00:31]} 8. a4 {[%emt 0:00:04]} Bb7 {[%emt 0:00:24]} 9. d3 {[%emt 0:00:20]} d6 {[%emt 0:00:44]} 10. Nbd2 {[%emt 0:00:07]} Na5 {[%emt 0:01:13]} 11. Ba2 {[%emt 0:00:06]} c5 {[%emt 0:04:20]} 12. Nf1 {[%emt 0:00:05]} c4 {[%emt 0:05:26]} 13. Ne3 {[%emt 0:04:56]} Re8 {[%emt 0:07:22]} 14. Bd2 {[%emt 0:06:01]} h6 {[%emt 0:06:25]} 15. h3 {[%emt 0:05:16]} Bf8 {[%emt 0:08:37]} 16. Nf5 {[%emt 0:07:04]} cxd3 {[%emt 0:07:29]} 17. cxd3 {[%emt 0:00:42]} Nc6 {[%emt 0:00:09]} 18. g4 {[%emt 0:24:48]} d5 {[%emt 0:11:21]} 19. exd5 {[%emt 0:18:20]} Nxd5 {[%emt 0:01:01]} 20. Qb3 {[%emt 0:00:08]} Nd4 {[%emt 0:10:35]} 21. N3xd4 {[%emt 0:03:37]} exd4 {[%emt 0:00:11]} 22. axb5 {[%emt 0:09:16]} axb5 {[%emt 0:04:53]} 23. Qxb5 {[%emt 0:02:13]} Rxe1+ {[%emt 0:04:56]} 24. Rxe1 {[%emt 0:00:39]} Rxa2 {[%emt 0:02:20]} 25. Qxb7 {[%emt 0:00:01]} Nf6 {[%emt 0:02:04]} 26. Rc1 {[%emt 0:04:27]} Ra8 {[%emt 0:03:20]} 27. Qc7 {[%emt 0:03:50]} Qe8 {[%emt 0:06:29]} 28. Nxd4 {[%emt 0:04:56]} Rd8 {[%emt 0:01:40]} 29. Re1 {[%emt 0:00:57]} Qd7 {[%emt 0:01:18]} 30. Qxd7 {[%emt 0:00:07]} Rxd7 {[%emt 0:00:06]} 31. Bc3 {[%emt 0:02:44]} Nd5 {[%emt 0:00:38]} 32. Re8 {[%emt 0:00:54]} Nf4 {[%emt 0:01:12]} 33. Nf5 {[%emt 0:00:39]} Ne6 {[%emt 0:00:51]} 34. d4 {[%emt 0:02:47]} Kh7 {[%emt 0:00:08]} 35. Ne3 {[%emt 0:00:36]} Bd6 {[%emt 0:00:24]} 36. Nc4 {[%emt 0:00:20]} 1-0

[Event "HUN-chT Youth-Children 2018"]
[Site "Zalakaros"]
[Date "2018.07.27"]
[Round "4"]
[White "Margl, Roland"]
[Black "Pribelszky, Bence"]
[Result "1/2-1/2"]
[ECO "A05"]
[WhiteElo "2183"]
[BlackElo "2245"]
[Annotator "NA"]
[PlyCount "106"]
[EventDate "2018.07.26"]
[EventType "team-tourn"]
[EventCountry "HUN"]
[SourceTitle "playchess.com"]
[Source "ChessBase"]
[SourceQuality "1"]
[TimeControl "5400+30"]

1. Nf3 {[%emt 0:00:00]} Nf6 {[%emt 0:00:10]} 2. c4 {[%emt 0:00:00]} e6 {[%emt 0:00:13]} 3. g3 {[%emt 0:00:00]} b6 {[%emt 0:00:22]} 4. Bg2 {[%emt 0:00:00]} Bb7 {[%emt 0:00:10]} 5. O-O {[%emt 0:00:00]} c5 {[%emt 0:00:28]} 6. d4 {[%emt 0:00:01]} cxd4 {[%emt 0:00:14]} 7. Qxd4 {[%emt 0:00:08]} Nc6 {[%emt 0:00:37]} 8. Qf4 {[%emt 0:00:19]} Ne7 {[%emt 0:06:13]} 9. Rd1 {[%emt 0:09:15]} Ng6 {[%emt 0:02:43]} 10. Qd2 {[%emt 0:01:06]} Bc5 {[%emt 0:12:19]} 11. Nc3 {[%emt 0:01:07]} O-O {[%emt 0:02:12]} 12. b3 {[%emt 0:01:42]} d5 {[%emt 0:09:13]} 13. cxd5 {[%emt 0:00:46]} Nxd5 {[%emt 0:02:38]} 14. Nxd5 {[%emt 0:00:14]} Bxd5 {[%emt 0:01:39]} 15. Bb2 {[%emt 0:00:38]} f6 {[%emt 0:25:23]} 16. Ne1 {[%emt 0:09:58]} Bxg2 {[%emt 0:02:53]} 17. Kxg2 {[%emt 0:04:24]} Qc8 {[%emt 0:14:56]} 18. Qd7 {[%emt 0:00:44]} Rd8 {[%emt 0:03:43]} 19. Qxc8 {[%emt 0:03:34]} Raxc8 {[%emt 0:00:21]} 20. Rxd8+ {[%emt 0:00:43]} Rxd8 {[%emt 0:00:02]} 21. Nd3 {[%emt 0:00:08]} Bd6 {[%emt 0:02:32]} 22. Rc1 {[%emt 0:00:42]} e5 {[%emt 0:01:53]} 23. Kf3 {[%emt 0:16:10]} Nf8 {[%emt 0:02:46]} 24. e4 {[%emt 0:03:58]} Ne6 {[%emt 0:01:22]} 25. Ke3 {[%emt 0:00:28]} g5 {[%emt 0:04:06]} 26. f3 {[%emt 0:01:31]} Kf7 {[%emt 0:01:12]} 27. Bc3 {[%emt 0:04:18]} Ba3 {[%emt 0:02:10]} 28. Rh1 {[%emt 0:02:30]} Rc8 {[%emt 0:01:26]} 29. Kd2 {[%emt 0:00:15]} a5 {[%emt 0:00:31]} 30. Rf1 {[%emt 0:03:05]} Rd8 {[%emt 0:00:26]} 31. Ke3 {[%emt 0:00:24]} Bc5+ {[%emt 0:00:34]} 32. Nxc5 {[%emt 0:02:06]} Nxc5 {[%emt 0:00:05]} 33. Rc1 {[%emt 0:00:21]} Rd3+ {[%emt 0:00:57]} 34. Ke2 {[%emt 0:00:02]} Rd7 {[%emt 0:00:16]} 35. Ke3 {[%emt 0:08:34]} Rd3+ {[%emt 0:00:34]} 36. Ke2 {[%emt 0:00:01]} Rd7 {[%emt 0:00:01]} 37. Ke3 {[%emt 0:00:08]} Ne6 {[%emt 0:00:53]} 38. Bb2 {[%emt 0:00:34]} Rc7 {[%emt 0:00:44]} 39. Rxc7+ {[%emt 0:00:32]} Nxc7 {[%emt 0:00:01]} 40. Kd3 {[%emt 0:01:19]} Ke6 {[%emt 0:00:59]} 41. a4 {[%emt 0:03:43]} Kd7 {[%emt 0:00:31]} 42. Bc1 {[%emt 0:02:14]} Ne6 {[%emt 0:00:25]} 43. Be3 {[%emt 0:00:08]} Kc6 {[%emt 0:00:14]} 44. Kc4 {[%emt 0:00:12]} h5 {[%emt 0:00:39]} 45. h3 {[%emt 0:00:26]} Nf8 {[%emt 0:00:42]} 46. Bf2 {[%emt 0:01:34]} Ng6 {[%emt 0:00:27]} 47. Be3 {[%emt 0:00:21]} h4 {[%emt 0:00:31]} 48. g4 {[%emt 0:00:02]} Nf8 {[%emt 0:00:31]} 49. Bc1 {[%emt 0:00:09]} Ne6 {[%emt 0:00:14]} 50. Be3 {[%emt 0:00:01]} Nd8 {[%emt 0:00:42]} 51. Bc1 {[%emt 0:00:16]} Ne6 {[%emt 0:00:18]} 52. Be3 {[%emt 0:00:56]} Nc7 {[%emt 0:00:31]} 53. Bd2 {[%emt 0:05:22]} Ne6 {[%emt 0:00:43]} 1/2-1/2

[Event "HUN-chT Youth-Children 2018"]
[Site "Zalakaros"]
[Date "2018.07.27"]
[Round "4"]
[White "Tubak, Daniel"]
[Black "Kovacs, Judit"]
[Result "1/2-1/2"]
[ECO "B43"]
[WhiteElo "2168"]
[BlackElo "2143"]
[Annotator "NA"]
[PlyCount "37"]
[EventDate "2018.07.26"]
[EventType "team-tourn"]
[EventCountry "HUN"]
[SourceTitle "playchess.com"]
[Source "ChessBase"]
[SourceQuality "1"]
[TimeControl "5400+30"]

1. e4 {[%emt 0:00:00]} c5 {[%emt 0:00:04]} 2. Nf3 {[%emt 0:00:00]} e6 {[%emt 0:00:05]} 3. d4 {[%emt 0:00:00]} cxd4 {[%emt 0:00:05]} 4. Nxd4 {[%emt 0:00:00]} a6 {[%emt 0:00:06]} 5. Nc3 {[%emt 0:00:05]} Qc7 {[%emt 0:00:05]} 6. Bd3 {[%emt 0:00:15]} Nf6 {[%emt 0:00:10]} 7. O-O {[%emt 0:00:13]} Bc5 {[%emt 0:00:10]} 8. Nb3 {[%emt 0:00:41]} Ba7 {[%emt 0:00:09]} 9. a4 {[%emt 0:01:56]} d6 {[%emt 0:03:13]} 10. Qf3 {[%emt 0:01:46]} Nbd7 {[%emt 0:14:56]} 11. Qg3 {[%emt 0:02:35]} h5 {[%emt 0:02:11]} 12. Bf4 {[%emt 0:08:29]} h4 {[%emt 0:10:00]} 13. Qxg7 {[%emt 0:04:44]} Rh7 {[%emt 0:03:53]} 14. Qg5 {[%emt 0:00:13]} Rh5 {[%emt 0:01:07]} 15. Qg7 {[%emt 0:00:09]} Rh7 {[%emt 0:04:29]} 16. Qg5 {[%emt 0:00:09]} Rh5 {[%emt 0:00:22]} 17. Qg7 {[%emt 0:00:07]} Rh7 {[%emt 0:03:54]} 18. Qg5 {[%emt 0:00:15]} Rh5 {[%emt 0:00:04]} 19. Qg7 {[%emt 0:00:05]} 1/2-1/2

[Event "HUN-chT Youth-Children 2018"]
[Site "Zalakaros"]
[Date "2018.07.27"]
[Round "4"]
[White "Pasztor, Balazs"]
[Black "Losonczi, Marcell"]
[Result "1/2-1/2"]
[ECO "C55"]
[WhiteElo "2072"]
[BlackElo "2149"]
[Annotator "NA"]
[PlyCount "63"]
[EventDate "2018.07.26"]
[EventType "team-tourn"]
[EventCountry "HUN"]
[SourceTitle "playchess.com"]
[Source "ChessBase"]
[SourceQuality "1"]
[TimeControl "5400+30"]

1. e4 {[%emt 0:00:00]} e5 {[%emt 0:00:06]} 2. Nf3 {[%emt 0:00:00]} Nc6 {[%emt 0:00:11]} 3. Bc4 {[%emt 0:00:04]} Nf6 {[%emt 0:00:09]} 4. d3 {[%emt 0:00:10]} h6 {[%emt 0:00:04]} 5. c3 {[%emt 0:00:33]} d6 {[%emt 0:00:06]} 6. O-O {[%emt 0:00:15]} g5 {[%emt 0:01:01]} 7. Nbd2 {[%emt 0:00:54]} Bg7 {[%emt 0:02:06]} 8. Bb3 {[%emt 0:01:04]} g4 {[%emt 0:01:22]} 9. Ne1 {[%emt 0:00:59]} d5 {[%emt 0:03:19]} 10. f4 {[%emt 0:08:34]} dxe4 {[%emt 0:10:41]} 11. fxe5 {[%emt 0:08:27]} Nxe5 {[%emt 0:00:54]} 12. d4 {[%emt 0:07:00]} Nc6 {[%emt 0:10:20]} 13. Qe2 {[%emt 0:04:38]} Qe7 {[%emt 0:04:00]} 14. Bc2 {[%emt 0:06:56]} O-O {[%emt 0:07:00]} 15. Nxe4 {[%emt 0:03:53]} Nxe4 {[%emt 0:01:16]} 16. Qxe4 {[%emt 0:00:24]} Qxe4 {[%emt 0:00:07]} 17. Bxe4 {[%emt 0:00:09]} Ne7 {[%emt 0:00:26]} 18. Bc2 {[%emt 0:04:41]} Nd5 {[%emt 0:10:09]} 19. Nd3 {[%emt 0:06:48]} c6 {[%emt 0:06:16]} 20. Nc5 {[%emt 0:09:47]} b6 {[%emt 0:05:11]} 21. Ne4 {[%emt 0:02:18]} Bd7 {[%emt 0:11:26]} 22. Nd6 {[%emt 0:09:33]} Rad8 {[%emt 0:07:32]} 23. Nf5 {[%emt 0:08:39]} Bxf5 {[%emt 0:01:02]} 24. Bxf5 {[%emt 0:00:24]} g3 {[%emt 0:05:12]} 25. hxg3 {[%emt 0:04:32]} Rfe8 {[%emt 0:00:14]} 26. Bf4 {[%emt 0:03:39]} Ne3 {[%emt 0:02:35]} 27. Bxe3 {[%emt 0:01:08]} Rxe3 {[%emt 0:00:05]} 28. Kf2 {[%emt 0:01:33]} Rde8 {[%emt 0:01:21]} 29. Rae1 {[%emt 0:03:03]} Rxe1 {[%emt 0:00:06]} 30. Rxe1 {[%emt 0:00:06]} Rxe1 {[%emt 0:00:05]} 31. Kxe1 {[%emt 0:00:06]} Kf8 {[%emt 0:00:14]} 32. Ke2 {[%emt 0:02:04]} 1/2-1/2

[Event "HUN-chT Youth-Children 2018"]
[Site "Zalakaros"]
[Date "2018.07.27"]
[Round "4"]
[White "Pasti, Aron"]
[Black "Szamko, Hanna"]
[Result "1-0"]
[ECO "C64"]
[WhiteElo "2069"]
[BlackElo "1327"]
[Annotator "NA"]
[PlyCount "71"]
[EventDate "2018.07.26"]
[EventType "team-tourn"]
[EventCountry "HUN"]
[SourceTitle "playchess.com"]
[Source "ChessBase"]
[SourceQuality "1"]
[TimeControl "5400+30"]

1. e4 {[%emt 0:00:00]} e5 {[%emt 0:00:14]} 2. Nf3 {[%emt 0:00:00]} Nc6 {[%emt 0:00:16]} 3. Bb5 {[%emt 0:00:00]} Bc5 {[%emt 0:00:49]} 4. c3 {[%emt 0:00:00]} Nge7 {[%emt 0:00:23]} 5. O-O {[%emt 0:00:22]} d5 {[%emt 0:00:13]} 6. Nxe5 {[%emt 0:01:26]} O-O {[%emt 0:01:09]} 7. Bxc6 Nxc6 {[%emt 0:01:28]} 8. Nxc6 {[%emt 0:00:19]} bxc6 {[%emt 0:00:12]} 9. d4 {[%emt 0:00:02]} Be7 {[%emt 0:01:03]} 10. e5 {[%emt 0:00:34]} f6 {[%emt 0:01:51]} 11. f4 {[%emt 0:00:56]} fxe5 {[%emt 0:00:51]} 12. fxe5 {[%emt 0:00:17]} Ba6 {[%emt 0:01:04]} 13. Rxf8+ {[%emt 0:02:43]} Qxf8 {[%emt 0:01:43]} 14. Nd2 {[%emt 0:00:11]} Qf5 {[%emt 0:01:53]} 15. Nf3 {[%emt 0:03:34]} Qd3 {[%emt 0:02:54]} 16. Qxd3 {[%emt 0:00:11]} Bxd3 {[%emt 0:00:09]} 17. Bg5 {[%emt 0:00:35]} Bf8 {[%emt 0:00:25]} 18. Re1 {[%emt 0:00:30]} h6 {[%emt 0:02:25]} 19. Bf4 {[%emt 0:00:36]} Re8 {[%emt 0:03:44]} 20. Nd2 {[%emt 0:02:03]} c5 {[%emt 0:01:44]} 21. Rc1 {[%emt 0:02:48]} Rb8 {[%emt 0:00:55]} 22. b3 {[%emt 0:00:35]} c4 {[%emt 0:01:11]} 23. b4 {[%emt 0:01:19]} a5 {[%emt 0:02:17]} 24. a3 {[%emt 0:00:37]} axb4 {[%emt 0:00:54]} 25. axb4 {[%emt 0:00:14]} Ra8 {[%emt 0:02:14]} 26. Re1 {[%emt 0:11:56]} Be7 {[%emt 0:00:44]} 27. e6 {[%emt 0:00:42]} c6 {[%emt 0:00:49]} 28. Nf3 {[%emt 0:00:30]} Re8 {[%emt 0:01:38]} 29. Ne5 {[%emt 0:00:36]} g5 {[%emt 0:01:54]} 30. Bg3 {[%emt 0:01:10]} Be4 {[%emt 0:01:17]} 31. Nxc6 {[%emt 0:00:58]} Bf8 {[%emt 0:01:01]} 32. e7 {[%emt 0:03:36]} Bxe7 {[%emt 0:00:12]} 33. b5 {[%emt 0:00:03]} Bd8 {[%emt 0:00:37]} 34. Nxd8 {[%emt 0:00:10]} Rxd8 {[%emt 0:00:09]} 35. b6 {[%emt 0:00:01]} Bf5 {[%emt 0:02:10]} 36. b7 {[%emt 0:02:28]} 1-0

[Event "HUN-chT Youth-Children 2018"]
[Site "Zalakaros"]
[Date "2018.07.27"]
[Round "4"]
[White "Fule, Simon"]
[Black "Monduk, Ferenc"]
[Result "1-0"]
[ECO "C11"]
[WhiteElo "2061"]
[BlackElo "1870"]
[Annotator "NA"]
[PlyCount "103"]
[EventDate "2018.07.26"]
[EventType "team-tourn"]
[EventCountry "HUN"]
[SourceTitle "playchess.com"]
[Source "ChessBase"]
[SourceQuality "1"]
[TimeControl "5400+30"]

1. e4 {[%emt 0:00:00]} e6 {[%emt 0:00:05]} 2. d4 {[%emt 0:00:00]} d5 {[%emt 0:00:03]} 3. Nc3 {[%emt 0:00:00]} Nf6 {[%emt 0:00:05]} 4. e5 {[%emt 0:00:00]} Nfd7 {[%emt 0:00:05]} 5. f4 {[%emt 0:00:01]} c5 {[%emt 0:00:03]} 6. Nf3 {[%emt 0:00:04]} Nc6 {[%emt 0:00:04]} 7. Be3 {[%emt 0:00:09]} Be7 {[%emt 0:00:25]} 8. Qd2 {[%emt 0:01:16]} O-O {[%emt 0:01:06]} 9. dxc5 {[%emt 0:00:20]} Bxc5 {[%emt 0:01:29]} 10. O-O-O {[%emt 0:00:43]} a6 {[%emt 0:00:49]} 11. g4 {[%emt 0:05:58]} b5 {[%emt 0:05:53]} 12. Kb1 {[%emt 0:04:16]} Qb6 {[%emt 0:02:45]} 13. Bxc5 {[%emt 0:06:13]} Nxc5 {[%emt 0:00:46]} 14. Bd3 {[%emt 0:00:27]} b4 {[%emt 0:01:39]} 15. Ne2 {[%emt 0:01:07]} a5 {[%emt 0:04:46]} 16. Nfd4 {[%emt 0:17:58]} Nxd4 {[%emt 0:02:59]} 17. Nxd4 {[%emt 0:00:07]} a4 {[%emt 0:02:04]} 18. f5 Nxd3 {[%emt 0:15:34]} 19. Qxd3 {[%emt 0:07:59]} f6 {[%emt 0:04:04]} 20. exf6 {[%emt 0:04:21]} Rxf6 {[%emt 0:03:01]} 21. Rhe1 {[%emt 0:09:26]} Qd6 {[%emt 0:12:32]} 22. g5 {[%emt 0:02:18]} Rf8 {[%emt 0:03:20]} 23. Nxe6 {[%emt 0:02:47]} Bxe6 {[%emt 0:01:36]} 24. Rxe6 {[%emt 0:01:44]} Qd7 {[%emt 0:01:29]} 25. Qxd5 {[%emt 0:00:30]} Qxd5 {[%emt 0:00:30]} 26. Rxd5 {[%emt 0:00:02]} Rad8 {[%emt 0:00:20]} 27. Rxd8 {[%emt 0:01:27]} Rxd8 {[%emt 0:00:02]} 28. Kc1 {[%emt 0:00:11]} Rd5 {[%emt 0:04:07]} 29. g6 {[%emt 0:00:12]} hxg6 {[%emt 0:00:20]} 30. fxg6 {[%emt 0:00:12]} Kf8 {[%emt 0:00:35]} 31. Ra6 {[%emt 0:00:45]} Rg5 {[%emt 0:00:12]} 32. Rxa4 {[%emt 0:00:20]} Rxg6 {[%emt 0:00:04]} 33. Rxb4 {[%emt 0:00:17]} Rg1+ {[%emt 0:00:07]} 34. Kd2 {[%emt 0:00:08]} Rg2+ {[%emt 0:00:05]} 35. Kd3 {[%emt 0:01:22]} Rxh2 {[%emt 0:00:06]} 36. Re4 {[%emt 0:00:09]} g5 {[%emt 0:00:57]} 37. Rg4 {[%emt 0:00:54]} Rh3+ {[%emt 0:00:04]} 38. Kd4 {[%emt 0:02:42]} Rh2 {[%emt 0:00:07]} 39. Rxg5 {[%emt 0:00:09]} Rxc2 {[%emt 0:00:06]} 40. Rb5 {[%emt 0:00:12]} Ke7 {[%emt 0:00:07]} 41. Kd3 {[%emt 0:00:57]} Rc6 {[%emt 0:00:22]} 42. Rd5 {[%emt 0:00:52]} Ra6 {[%emt 0:00:22]} 43. a3 {[%emt 0:00:13]} Rb6 {[%emt 0:00:02]} 44. Kc2 {[%emt 0:00:45]} Rc6+ {[%emt 0:00:07]} 45. Kb1 {[%emt 0:00:20]} Rb6 {[%emt 0:00:33]} 46. b4 {[%emt 0:00:31]} Rh6 {[%emt 0:01:14]} 47. Rd2 {[%emt 0:00:28]} Rh3 {[%emt 0:00:18]} 48. Kb2 {[%emt 0:00:06]} Rh4 {[%emt 0:00:16]} 49. Rd3 {[%emt 0:00:20]} Ke6 {[%emt 0:00:27]} 50. Kb3 {[%emt 0:00:19]} Ke5 {[%emt 0:00:34]} 51. b5 {[%emt 0:00:50]} Ke6 {[%emt 0:00:19]} 52. a4 {[%emt 0:01:44] Kd5} 1-0

[Event "HUN-chT Youth-Children 2018"]
[Site "Zalakaros"]
[Date "2018.07.27"]
[Round "4"]
[White "Tancsa, Tamas"]
[Black "Dibusz, Domonkos"]
[Result "1/2-1/2"]
[ECO "C96"]
[WhiteElo "2023"]
[BlackElo "2076"]
[Annotator "NA"]
[PlyCount "120"]
[EventDate "2018.07.26"]
[EventType "team-tourn"]
[EventCountry "HUN"]
[SourceTitle "playchess.com"]
[Source "ChessBase"]
[SourceQuality "1"]
[TimeControl "5400+30"]

1. e4 {[%emt 0:00:00]} e5 {[%emt 0:00:04]} 2. Nf3 {[%emt 0:00:00]} Nc6 {[%emt 0:00:05]} 3. Bb5 {[%emt 0:00:03]} a6 {[%emt 0:00:01]} 4. Ba4 {[%emt 0:00:28]} Nf6 {[%emt 0:00:05]} 5. O-O {[%emt 0:00:07]} Be7 {[%emt 0:00:01]} 6. Re1 {[%emt 0:00:08]} b5 {[%emt 0:00:02]} 7. Bb3 {[%emt 0:00:14]} d6 {[%emt 0:00:04]} 8. c3 {[%emt 0:00:05]} O-O {[%emt 0:00:03]} 9. h3 {[%emt 0:00:07]} Na5 {[%emt 0:00:02]} 10. Bc2 {[%emt 0:00:07]} c5 {[%emt 0:01:46]} 11. d4 {[%emt 0:00:11]} Nd7 {[%emt 0:00:30]} 12. d5 {[%emt 0:00:54]} Nb6 {[%emt 0:00:11]} 13. Nbd2 {[%emt 0:00:48]} Bd7 {[%emt 0:00:17]} 14. Nf1 {[%emt 0:02:34]} Qc7 {[%emt 0:01:12]} 15. g4 {[%emt 0:01:13]} Nb7 {[%emt 0:01:43]} 16. Ng3 {[%emt 0:00:16]} g6 {[%emt 0:00:10]} 17. Bh6 {[%emt 0:00:22]} Rfe8 {[%emt 0:00:28]} 18. Kh1 {[%emt 0:00:36]} a5 {[%emt 0:10:51]} 19. Rg1 {[%emt 0:00:05]} Kh8 {[%emt 0:07:16]} 20. Nf5 {[%emt 0:06:11]} Bxf5 {[%emt 0:18:09]} 21. gxf5 {[%emt 0:01:25]} Nd7 {[%emt 0:02:17]} 22. Ng5 {[%emt 0:01:20]} Bxg5 {[%emt 0:00:32]} 23. Bxg5 {[%emt 0:00:01]} Kg7 {[%emt 0:12:57]} 24. Qg4 {[%emt 0:00:52]} Rg8 {[%emt 0:09:27]} 25. Qh4 {[%emt 0:02:11]} h5 {[%emt 0:06:21]} 26. Be3 {[%emt 0:03:18]} Kf8 {[%emt 0:03:10]} 27. Qg5 {[%emt 0:03:05]} Ke8 {[%emt 0:04:17]} 28. Qh6 {[%emt 0:01:42]} Nf8 {[%emt 0:02:12]} 29. Bd1 {[%emt 0:00:00]} Qe7 {[%emt 0:01:10]} 30. Bg5 {[%emt 0:01:55]} f6 {[%emt 0:03:31]} 31. Bh4 {[%emt 0:00:11]} g5 {[%emt 0:02:41]} 32. Bxh5+ {[%emt 0:07:42]} Kd7 {[%emt 0:00:08]} 33. Bxg5 {[%emt 0:01:02]} fxg5 {[%emt 0:00:43]} 34. f6 {[%emt 0:00:33]} Qh7 {[%emt 0:00:21]} 35. Bg4+ {[%emt 0:17:37]} Kc7 {[%emt 0:01:40]} 36. Qxh7+ {[%emt 0:07:10]} Nxh7 {[%emt 0:00:01]} 37. Be6 {[%emt 0:00:42]} Nxf6 {[%emt 0:01:02]} 38. Bxg8 {[%emt 0:00:07]} Rxg8 {[%emt 0:00:02]} 39. f3 {[%emt 0:00:08]} c4 {[%emt 0:03:18]} 40. Rg2 {[%emt 0:00:34]} Nc5 {[%emt 0:01:03]} 41. Rag1 {[%emt 0:02:03]} Rh8 {[%emt 0:01:48]} 42. Rxg5 {[%emt 0:02:22]} Rxh3+ {[%emt 0:00:07]} 43. Kg2 {[%emt 0:00:05]} Rh7 {[%emt 0:00:15]} 44. Kf1 {[%emt 0:00:20]} Nd3 {[%emt 0:00:00]} 45. Rg7+ {[%emt 0:00:16]} Rxg7 {[%emt 0:00:21]} 46. Rxg7+ {[%emt 0:00:02]} Nd7 {[%emt 0:00:18]} 47. Rg2 {[%emt 0:00:10]} b4 {[%emt 0:00:43]} 48. cxb4 {[%emt 0:01:57]} axb4 {[%emt 0:00:23]} 49. Rc2 {[%emt 0:00:09]} Nb6 {[%emt 0:00:18]} 50. Ke2 {[%emt 0:00:10]} Kb7 {[%emt 0:01:53]} 51. Ke3 {[%emt 0:00:17]} Nf4 {[%emt 0:01:13]} 52. Kd2 {[%emt 0:07:26]} Ka6 {[%emt 0:00:27]} 53. b3 {[%emt 0:03:01]} Kb5 {[%emt 0:00:26]} 54. Ke3 {[%emt 0:00:29]} Kc5 {[%emt 0:00:40]} 55. Rh2 {[%emt 0:01:22]} c3 {[%emt 0:03:03]} 56. Rh7 {[%emt 0:03:50]} Kb5 {[%emt 0:01:13]} 57. Rg7 {[%emt 0:00:56]} Ka6 {[%emt 0:03:31]} 58. Rh7 {[%emt 0:00:20]} Ka5 {[%emt 0:00:17]} 59. Rg7 {[%emt 0:00:11]} Kb5 {[%emt 0:00:19]} 60. Rh7 {[%emt 0:00:14]} Ka6 {[%emt 0:01:23]} 1/2-1/2

[Event "HUN-chT Youth-Children 2018"]
[Site "Zalakaros"]
[Date "2018.07.27"]
[Round "4"]
[White "Kovacs, Gabor Etele"]
[Black "Lengyel, Andrea"]
[Result "1/2-1/2"]
[ECO "B31"]
[WhiteElo "1999"]
[BlackElo "1854"]
[Annotator "NA"]
[PlyCount "31"]
[EventDate "2018.07.26"]
[EventType "team-tourn"]
[EventCountry "HUN"]
[SourceTitle "playchess.com"]
[Source "ChessBase"]
[SourceQuality "1"]
[TimeControl "5400+30"]

1. e4 {[%emt 0:00:00]} c5 {[%emt 0:00:19]} 2. Nf3 {[%emt 0:00:00]} Nc6 {[%emt 0:01:44]} 3. Bb5 {[%emt 0:00:00]} g6 {[%emt 0:00:42]} 4. Bxc6 {[%emt 0:00:00]} bxc6 {[%emt 0:03:20]} 5. O-O {[%emt 0:00:03]} Bg7 {[%emt 0:00:46]} 6. Re1 {[%emt 0:00:08]} e5 {[%emt 0:00:45]} 7. b4 {[%emt 0:00:18]} cxb4 {[%emt 0:02:25]} 8. a3 {[%emt 0:00:10]} c5 {[%emt 0:11:46]} 9. axb4 {[%emt 0:00:42]} cxb4 {[%emt 0:00:07]} 10. Bb2 {[%emt 0:00:42]} d6 {[%emt 0:01:25]} 11. d4 {[%emt 0:01:16]} f6 {[%emt 0:04:17]} 12. dxe5 {[%emt 0:14:06]} dxe5 {[%emt 0:00:37]} 13. Qe2 {[%emt 0:03:00]} a5 {[%emt 0:07:59]} 14. Qb5+ {[%emt 0:09:32]} Bd7 {[%emt 0:02:36]} 15. Qc4 {[%emt 0:06:29]} Qc8 {[%emt 0:15:52]} 16. Qd3 {[%emt 0:03:53]} 1/2-1/2